[Event "Mitropa Cup Women 2022"]
[Site "Corte"]
[Date "2022.05.06"]
[Round "7.1"]
[White "Unuk, Laura"]
[Black "Exler, Veronika"]
[Result "1-0"]
[ECO "B15"]
[WhiteElo "2338"]
[BlackElo "2121"]
[Annotator "TA"]
[PlyCount "105"]
[EventDate "2022.04.30"]
[EventType "team-tourn"]
[EventCountry "FRA"]
[SourceTitle "playchess.com"]
[Source "ChessBase"]
[SourceQuality "1"]
[WhiteTeam "Slovenia"]
[BlackTeam "Austria"]
[WhiteTeamCountry "SLO"]
[BlackTeamCountry "AUT"]
[TimeControl "40/5400+30:1800+30"]

{[%evp 14,105,33,32,36,33,45,22,20,19,25,0,4,19,25,24,8,11,26,29,25,18,68,79,74,35,140,138,143,139,125,135,140,141,189,187,175,184,216,178,183,193,170,154,167,175,242,229,284,273,290,297,281,272,261,195,214,214,276,271,235,234,396,429,486,466,494,330,302,262,994,981,756,710,985,979,908,900,1437,1337,2026,1665,6344,6487,29981,29982,29982,29983,29982,29983,29986,29987,29990,29991]} 1. e4 {[%emt 0:00:06]} c6 {[%emt 0:00:02]} 2. d4 {[%emt 0:00:11]} d5 {[%emt 0:00:03]} 3. Nc3 {[%emt 0:00:10]} dxe4 {[%emt 0:00:07]} 4. Nxe4 {[%emt 0:00:06]} Nf6 {[%emt 0:02:29]} 5. Nxf6+ {[%emt 0:00:21]} exf6 {[%emt 0:00:05]} 6. c3 {[%emt 0:00:19]} Bd6 {[%emt 0:00:08]} 7. Bd3 {[%emt 0:00:10]} O-O {[%emt 0:00:09]} 8. Qc2 {[%emt 0:00:17] Active counter play!} Re8+ {[%emt 0:00:05] B15: Caro-Kann: 3 Nc3: 3...g6 and 3...dxe4 4 Nxe4 Nf6 5 Nxf6+ exf6.} 9. Ne2 {[%emt 0:00:05]} h5 {[%emt 0:00:03]} 10. Be3 {[%emt 0:01:03]} Nd7 {[%emt 0:00:49] The position is equal.} 11. O-O-O {[%emt 0:00:14]} Nf8 {[%emt 0:00:42]} 12. Kb1 {[%emt 0:01:11]} Be6 {[%emt 0:00:25]} 13. c4 {[%emt 0:00:31][%cal Bc3c4,Bc4c5][%mdl 32]} Rc8 {[%emt 0:00:13][%cal Ob7b5]} 14. a3 {[%emt 0:02:12]} b5 {[%emt 0:03:37]} 15. c5 {[%emt 0:02:25]} Bb8 {[%emt 0:02:25]} 16. Nc3 {[%emt 0:04:53][%cal Od4d5]} Qa5 {[%emt 0:32:19] [#]} 17. d5 $146 {[%emt 0:07:20]} ({Predecessor:} 17. Bd2 Qd8 18. Bc1 Qe7 19. Rhe1 a5 20. d5 cxd5 21. Bxb5 Red8 22. Nxd5 Rxd5 23. Rxd5 {1-0 (53) Mammadzada,G (2459)-Peng,Z (2351) Terme Catez 2021}) 17... Bxd5 {[%emt 0:05:23]} (17... cxd5 $11 18. Nxb5 (18. Bxb5 Red8 $11) 18... Bd7) 18. Nxd5 $14 {[%emt 0:01:12]} cxd5 19. Qb3 {[%emt 0:15:13][%csl LRb5,LRd5]} Red8 {[%emt 0:26:14] Black is on the road to losing.} ({Not} 19... Rxe3 20. fxe3 Rxc5 21. Rc1 Rxc1+ 22. Rxc1 $16) ({Black should play} 19... Be5 $14) 20. Bf5 $36 {[%emt 0:13:08][%mdl 2048] White has strong initiative.} ({But not} 20. Bxb5 $6 Ne6 $11) 20... Ne6 {[%emt 0:00:19]} 21. Rxd5 {[%emt 0:00:16]} Rxd5 {[%emt 0:00:26]} 22. Qxd5 {[%emt 0:00:06]} Rd8 {[%emt 0:00:58]} 23. Qe4 {[%emt 0:02:15]} Nf8 {[%emt 0:10:53]} (23... Qc7 $16 {might work better.}) 24. g4 $1 $18 {[%emt 0:10:51]} hxg4 {[%emt 0:11:01]} (24... g6 $2 25. gxh5 $1 Qa4 26. Qxa4 bxa4 27. hxg6 $18) 25. Qxg4 {[%emt 0:02:24]} ({Don't do} 25. Bxg4 a6 26. h4 Qc7 $16) 25... Be5 {[%emt 0:00:08]} 26. h4 {[%emt 0:02:34] Rg1 is the strong threat.} Qa4 {[%emt 0:01:00] [#]} 27. Qxa4 $1 {[%emt 0:10:25]} bxa4 {[%emt 0:00:01]} 28. Rc1 {[%emt 0:00:46]} Rb8 {[%emt 0:00:29]} 29. Rc2 {[%emt 0:00:28]} Ne6 {[%emt 0:00:13]} (29... g6 $142) 30. c6 {[%emt 0:00:35]} a5 {[%emt 0:00:42]} 31. Ba7 {[%emt 0:02:32] A strong pair of Bishops.} Ra8 {[%emt 0:00:10]} 32. Bb6 {[%emt 0:01:00]} Bc7 {[%emt 0:01:57]} 33. Bxc7 {[%emt 0:01:43]} Nxc7 {[%emt 0:00:02][%mdl 4096] Endgame KRB-KRN} 34. Rc4 {[%emt 0:01:35]} Kf8 {[%emt 0:00:41]} 35. Rxa4 {[%emt 0:00:21]} g6 {[%emt 0:00:32]} 36. Be4 {[%emt 0:04:16]} Re8 {[%emt 0:00:24]} 37. Kc2 {[%emt 0:01:21]} f5 $2 {[%emt 0:00:05]} (37... Re5 38. Kd2 Rb5) 38. Bf3 {[%emt 0:00:38]} Re5 {[%emt 0:00:05]} 39. Rd4 {[%emt 0:00:53]} Ne6 {[%emt 0:01:01]} 40. Rd7 {[%emt 0:01:08] Strongly threatening b4.} Rc5+ {[%emt 0:00:17]} 41. Kd2 {[%emt 0:37:58]} Ke8 $2 {[%emt 0:30:18]} (41... a4 42. h5 gxh5 43. Bxh5 Rxc6 44. Rxf7+ Kg8) 42. b4 {[%emt 0:03:41]} axb4 {[%emt 0:00:12]} 43. axb4 {[%emt 0:00:03][%cal Ba3b4,Bb4b5,Bb5b6][%mdl 32]} Rc4 {[%emt 0:00:36]} 44. b5 {[%emt 0:01:52] And now b6 would win.} Rb4 {[%emt 0:00:40]} 45. Rb7 {[%emt 0:00:00]} Rb2+ {[%emt 0:00:00]} 46. Kc1 {[%emt 0:00:00]} Rxf2 {[%emt 0:00:00]} 47. Bd5 {[%emt 0:00:00] Hoping for Bxe6.} Rf4 {[%emt 0:00:00]} 48. b6 {[%emt 0:00:00] Threatening mate with Bxe6.} Rxh4 {[%emt 0:00:00]} 49. Bxe6 {[%emt 0:00:00] White mates.} fxe6 {[%emt 0:00:00]} 50. Rb8+ {[%emt 0:00:00]} Ke7 {[%emt 0:00:00]} 51. c7 {[%emt 0:00:00]} Rc4+ {[%emt 0:00:00]} 52. Kd2 {[%emt 0:00:00]} Kd7 {[%emt 0:00:00]} 53. Rd8+ {[%emt 0:00:00] Weighted Error Value: White=0.10 (very precise) /Black=0.39} 1-0

[Event "Mitropa Cup Women 2022"]
[Site "Corte"]
[Date "2022.05.06"]
[Round "7.1"]
[White "Schulze, Lara"]
[Black "Borosova, Zuzana"]
[Result "0-1"]
[ECO "C50"]
[WhiteElo "2303"]
[BlackElo "2265"]
[Annotator "TA"]
[PlyCount "78"]
[EventDate "2022.04.30"]
[EventType "team-tourn"]
[EventCountry "FRA"]
[SourceTitle "playchess.com"]
[Source "ChessBase"]
[SourceQuality "1"]
[WhiteTeam "Germany"]
[BlackTeam "Slovakia"]
[WhiteTeamCountry "GER"]
[BlackTeamCountry "SVK"]
[TimeControl "40/5400+30:1800+30"]

{[%evp 22,78,0,0,0,2,9,2,3,12,12,14,10,0,0,0,0,0,6,0,0,0,0,-13,0,0,0,-17,4,0,6,-3,0,-10,-9,-128,-118,-129,-119,-127,-124,-129,-121,-126,-109,-157,-145,-121,-109,-140,-110,-139,-115,-225,-193,-29969,-936,-841,-833]} 1. e4 {[%emt 0:00:02]} e5 {[%emt 0:00:05]} 2. Nf3 {[%emt 0:00:05]} Nc6 {[%emt 0:00:03]} 3. Bc4 {[%emt 0:00:08]} Nf6 {[%emt 0:00:33]} 4. d3 {[%emt 0:00:06]} Bc5 {[%emt 0:00:22]} 5. Nc3 {[%emt 0:00:11]} a6 {[%emt 0:02:19]} 6. Bg5 {[%emt 0:01:30]} h6 {[%emt 0:02:07]} 7. Bxf6 {[%emt 0:00:22]} Qxf6 {[%emt 0:00:33]} 8. Nd5 {[%emt 0:00:09]} Qd8 {[%emt 0:02:00]} 9. c3 {[%emt 0:00:31]} d6 {[%emt 0:23:42]} 10. d4 {[%emt 0:00:27]} exd4 {[%emt 0:01:38]} 11. cxd4 {[%emt 0:00:10]} Ba7 {[%emt 0:00:25]} 12. h3 {[%emt 0:00:16]} b5 {[%emt 0:24:43] C50: Hungarian Defence and Giuoco Pianissimo.} 13. Bb3 {[%emt 0:09:13][%cal Bc4b3,Bb3d5,Bd5c6][%mdl 32]} Ne7 {[%emt 0:04:23] [#]} 14. Nxe7 $146 {[%emt 0:21:32]} ({Predecessor:} 14. Qc2 Nxd5 15. Bxd5 Rb8 16. Rc1 Bb6 17. O-O O-O 18. Bb3 Qf6 19. e5 dxe5 20. dxe5 {0-1 (30) Zydek,J-Haciuk,A Mielno 2011}) 14... Qxe7 {[%emt 0:00:04] The position is equal.} 15. Bd5 {[%emt 0:00:21]} Rb8 {[%emt 0:03:07]} 16. Bc6+ {[%emt 0:08:06]} Bd7 {[%emt 0:00:54]} 17. Qc2 {[%emt 0:08:03]} O-O {[%emt 0:01:29]} 18. O-O {[%emt 0:01:17]} Bxc6 {[%emt 0:13:09]} 19. Qxc6 {[%emt 0:00:13]} Rb6 {[%emt 0:00:12]} 20. Qc2 {[%emt 0:00:46]} c5 {[%emt 0:00:26]} 21. Rfe1 {[%emt 0:02:24]} Rb7 {[%emt 0:03:52]} 22. Qd2 {[%emt 0:04:24]} Bb6 {[%emt 0:07:41]} 23. Rac1 {[%emt 0:05:28]} Rd8 {[%emt 0:00:50]} 24. g3 {[%emt 0:14:13]} Qf6 {[%emt 0:01:19]} 25. Kg2 {[%emt 0:00:24]} Re7 {[%emt 0:01:08]} 26. Rcd1 {[%emt 0:05:00]} cxd4 {[%emt 0:03:28]} 27. Nxd4 {[%emt 0:06:25] Hoping for Nc6.} Rde8 {[%emt 0:00:50]} ({Much less strong is} 27... d5 28. e5 Qg6 29. Rc1 Bxd4 30. Qxd4 $14) 28. Nf5 {[%emt 0:08:15]} (28. Nf3 $1 $11 {keeps the balance.}) 28... Rxe4 $17 {[%emt 0:00:45]} 29. Rxe4 {[%emt 0:00:36]} Rxe4 {[%emt 0:00:07]} 30. Qxd6 {[%emt 0:00:16] [#]} Re6 {[%emt 0:01:42]} 31. Qf4 {[%emt 0:01:44]} Qxb2 {[%emt 0:00:30]} 32. Rd2 {[%emt 0:01:15]} Qc3 {[%emt 0:00:42]} 33. Kh2 {[%emt 0:02:04]} (33. Qb8+ $142 Kh7 34. Qf8) 33... Bc7 {[%emt 0:01:04]} 34. Qg4 {[%emt 0:00:19][%cal Od2c2]} Qf6 {[%emt 0:00:40][%cal Oh6h5]} 35. Rd7 {[%emt 0:00:49]} Bb6 {[%emt 0:00:15] aiming for ...Re5.} 36. Qf3 {[%emt 0:00:26]} Kh7 {[%emt 0:00:29]} 37. Qf4 {[%emt 0:00:48]} (37. Kg2 $17) 37... Re2 $19 {[%emt 0:00:34][%csl LRa2,LRf2]} 38. Ne3 $2 {[%emt 0:00:40] [#]} (38. Rd6 $19 Bxf2 39. Rxf6 Be3+ 40. Kh1 Bxf4 41. Rxa6) 38... Qxf4 {[%emt 0:00:10]} (38... Rxf2+ $142 39. Ng2 Rxf4 40. Nxf4 Qb2+ 41. Ng2 Qb1 42. Ne3 Bxe3 43. Kg2 f5 44. Rd2 Qg1+ 45. Kf3 Bxd2 46. Ke2 Qe1+ 47. Kd3 Bc3 48. Kc2 Qd2+ 49. Kb3 Qb2#) 39. gxf4 {[%emt 0:00:04]} Bxe3 {[%emt 0:00:07] Weighted Error Value: White=0.44/Black=0.26 (precise)} 0-1

[Event "Mitropa Cup Women 2022"]
[Site "Corte"]
[Date "2022.05.06"]
[Round "7.2"]
[White "Berke, Ana"]
[Black "Navrotescu, Andreea"]
[Result "1-0"]
[ECO "C90"]
[WhiteElo "2150"]
[BlackElo "2318"]
[Annotator "TA"]
[PlyCount "71"]
[EventDate "2022.04.30"]
[EventType "team-tourn"]
[EventCountry "FRA"]
[SourceTitle "playchess.com"]
[Source "ChessBase"]
[SourceQuality "1"]
[WhiteTeam "Croatia"]
[BlackTeam "France"]
[WhiteTeamCountry "CRO"]
[BlackTeamCountry "FRA"]
[TimeControl "40/5400+30:1800+30"]

{[%evp 23,70,14,9,10,12,20,18,0,0,0,89,90,279,260,292,294,284,286,343,266,248,258,249,205,198,197,463,458,475,470,1028,1014,936,812,787,720,682,676,664,661,658,460,29980,29981,29981,29982,29988,29989,29999]} 1. e4 {[%emt 0:00:03]} e5 {[%emt 0:00:05]} 2. Nf3 {[%emt 0:00:22]} Nc6 {[%emt 0:00:06]} 3. Bb5 {[%emt 0:00:07][%cal Bf1b5,Bb5a4,Ba4b3][%mdl 32]} a6 {[%emt 0:00:06]} 4. Ba4 {[%emt 0:00:04]} Nf6 {[%emt 0:00:07]} 5. d3 {[%emt 0:01:25]} b5 {[%emt 0:03:11]} 6. Bb3 {[%emt 0:00:05]} Be7 {[%emt 0:00:49]} 7. c3 {[%emt 0:00:10]} O-O {[%emt 0:00:53]} 8. O-O {[%emt 0:00:12]} d6 {[%emt 0:06:24]} 9. Re1 {[%emt 0:00:13]} Na5 {[%emt 0:01:27]} 10. Bc2 {[%emt 0:00:21]} c5 {[%emt 0:01:22]} 11. Nbd2 {[%emt 0:00:09][%cal Bb1d2,Bd2f1,Bf1g3][%mdl 32]} Nc6 {[%emt 0:04:35]} 12. Nf1 {[%emt 0:00:07]} h6 {[%emt 0:08:31]} 13. h3 {[%emt 0:00:31] C90: Closed Ruy Lopez with 7...d6: Early deviations.} Qc7 {[%emt 0:04:38]} 14. Ng3 {[%emt 0:02:30]} d5 {[%emt 0:10:33] [#]} 15. Nh4 $146 {[%emt 0:07:36] The position is equal.} ({Predecessor:} 15. Qe2 d4 16. Nh4 Re8 17. Ngf5 Bxf5 18. Nxf5 Bf8 19. Qf3 Qd8 20. g4 Nh7 21. Qg3 {½-½ (62) Potocki,K (1851)-Wrabel,A (1887) Warsaw 2009}) 15... Rd8 {[%emt 0:08:42]} 16. exd5 {[%emt 0:09:36]} Rxd5 {[%emt 0:08:12]} (16... Nxd5 $11 17. Nhf5 Bf8) 17. Qf3 $16 {[%emt 0:02:36]} e4 $2 {[%emt 0:15:25]} (17... Be6 $16) 18. dxe4 $18 {[%emt 0:04:43]} (18. Nxe4 $6 Ne5 19. Qe2 Ne8 $16) 18... Ne5 {[%emt 0:00:16]} 19. Qe2 {[%emt 0:02:35]} Rd8 {[%emt 0:02:29]} 20. f4 {[%emt 0:07:35]} Nc6 {[%emt 0:01:11]} 21. Nhf5 {[%emt 0:02:16] e5 is the strong threat.} Bf8 {[%emt 0:02:45]} 22. e5 {[%emt 0:04:12]} Nd5 {[%emt 0:00:02]} 23. Qe4 {[%emt 0:01:09][%cal Of5h6] White threatens Nxh6+! and mate.} g6 {[%emt 0:01:06]} 24. Nh4 {[%emt 0:01:24] Black must now prevent f5.} Bg7 $2 {[%emt 0:04:16] [#]} (24... Qe7) 25. Nxg6 $1 {[%emt 0:03:04][%mdl 512]} fxg6 {[%emt 0:00:10]} 26. Qxg6 {[%emt 0:00:17]} Nde7 {[%emt 0:02:25]} (26... c4 $142 27. Nh5 Qf7 28. Qxc6 Bd7) 27. Qh7+ {[%emt 0:01:57]} Kf8 {[%emt 0:00:02]} 28. Nh5 {[%emt 0:02:27]} Ng8 {[%emt 0:00:12]} 29. e6 {[%emt 0:05:51]} Qe7 {[%emt 0:00:14]} 30. Bg6 {[%emt 0:11:21] Strongly threatening Bf7.} Nf6 {[%emt 0:01:57]} 31. Nxf6 {[%emt 0:02:13]} ({Not} 31. Qxg7+ Qxg7 32. Nxg7 Kxg7 $16) 31... Qxf6 {[%emt 0:00:01]} 32. Be3 {[%emt 0:03:53]} ({Weaker is} 32. Bf7 Ra7 $14) 32... Bxe6 {[%emt 0:02:53]} (32... Rd5 $18 33. Be4 (33. Bf7 Ne7 $16) 33... Bxe6) 33. Bxc5+ {[%emt 0:01:14] White mates.} Ne7 {[%emt 0:00:01]} 34. f5 {[%emt 0:02:28]} Bg8 {[%emt 0:00:23] [#]} 35. Rxe7 $1 {[%emt 0:02:38][%csl Gg6][%cal Re7e8]} Bxh7 {[%emt 0:00:06]} (35... Qxe7 36. Bxe7+) 36. Re8# $1 {Black got outplayed after the opening.  Weighted Error Value: White=0.23 (precise) /Black=0.60} 1-0

[Event "Mitropa Cup Women 2022"]
[Site "Corte"]
[Date "2022.05.06"]
[Round "7.2"]
[White "Trippold, Denise"]
[Black "Janzelj, Lara"]
[Result "1/2-1/2"]
[ECO "A05"]
[WhiteElo "2147"]
[BlackElo "2191"]
[Annotator "TA"]
[PlyCount "74"]
[EventDate "2022.04.30"]
[EventType "team-tourn"]
[EventCountry "FRA"]
[SourceTitle "playchess.com"]
[Source "ChessBase"]
[SourceQuality "1"]
[WhiteTeam "Austria"]
[BlackTeam "Slovenia"]
[WhiteTeamCountry "AUT"]
[BlackTeamCountry "SLO"]
[TimeControl "40/5400+30:1800+30"]

{[%evp 19,74,32,35,27,31,33,38,35,33,26,37,12,53,9,39,41,58,22,10,14,31,0,0,0,0,0,14,0,0,0,9,-24,0,-29,-15,-20,0,-13,-8,-26,0,-6,0,0,-9,-14,30,0,0,0,0,0,0,0,0,0,0]} 1. Nf3 {[%emt 0:00:06]} Nf6 {[%emt 0:00:14]} 2. c4 {[%emt 0:00:14]} e6 {[%emt 0:00:11]} 3. e3 {[%emt 0:00:52]} d5 {[%emt 0:00:35]} 4. Nc3 {[%emt 0:00:40]} Be7 {[%emt 0:01:12]} 5. b3 {[%emt 0:00:55]} O-O {[%emt 0:00:08]} 6. Bb2 {[%emt 0:00:12]} b6 {[%emt 0:01:20]} 7. cxd5 {[%emt 0:00:30]} exd5 {[%emt 0:00:06]} 8. d4 {[%emt 0:03:01]} Bb7 {[%emt 0:04:47]} 9. Bd3 {[%emt 0:00:18]} Nbd7 {[%emt 0:00:35]} 10. O-O {[%emt 0:00:34]} Re8 {[%emt 0:03:54]} 11. Ne5 {[%emt 0:06:47] E14: Queen's Indian: Classical Variation (4 e3).} Bd6 {[%emt 0:05:14]} 12. f4 {[%emt 0:02:30]} c5 {[%emt 0:00:08]} 13. Qf3 {[%emt 0:06:15] White is slightly better.} Nf8 {[%emt 0:00:46] [#]} 14. Bb5 $146 {[%emt 0:02:57]} ({Predecessor:} 14. Rad1 cxd4 15. exd4 Ne6 16. Ne2 a5 17. Ng3 Ba6 18. Nf5 Bxd3 19. Rxd3 a4 20. Qh3 {1-0 (31) Kovalenko,I (2656)-Skliarov,V (2304) Lutsk 2015}) 14... Re6 $1 {[%emt 0:10:43]} 15. Rad1 {[%emt 0:23:49]} Rc8 {[%emt 0:06:55]} 16. Bd3 {[%emt 0:04:19]} Re8 {[%emt 0:03:05]} 17. Bf5 {[%emt 0:02:54]} Ne6 {[%emt 0:00:43]} 18. Ne2 {[%emt 0:08:33]} Ba6 {[%emt 0:03:40]} 19. dxc5 {[%emt 0:09:57]} Bxc5 {[%emt 0:10:17]} 20. Nd3 {[%emt 0:01:39]} Bf8 {[%emt 0:16:33]} 21. Ne5 {[%emt 0:02:24]} Rc7 {[%emt 0:02:09]} 22. Rc1 {[%emt 0:07:02]} Bc5 {[%emt 0:01:28][%cal Of6e4]} 23. Kh1 {[%emt 0:01:55]} Qe7 {[%emt 0:05:05]} 24. Rfd1 {[%emt 0:00:29]} Bb7 {[%emt 0:01:47]} (24... g6 $5 {[%cal Rg6f5]} 25. Ng3 Bb7 $11) 25. Nd4 {[%emt 0:04:33]} Bxd4 {[%emt 0:03:12]} 26. Bxd4 {[%emt 0:03:53]} Rec8 {[%emt 0:02:12]} 27. Rxc7 {[%emt 0:01:43]} Rxc7 {[%emt 0:00:06]} 28. h3 {[%emt 0:04:15]} Nxd4 {[%emt 0:04:17]} (28... h6 {feels hotter.} 29. Qg3 Nxd4 30. exd4 Bc8) 29. exd4 {[%emt 0:00:01]} Qa3 {[%emt 0:01:34]} 30. Qf2 {[%emt 0:00:46]} Rc1 {[%emt 0:04:42]} 31. Rxc1 {[%emt 0:00:23]} Qxc1+ {[%emt 0:00:03]} 32. Kh2 {[%emt 0:00:08]} Ne4 {[%emt 0:00:38]} 33. Bxh7+ {[%emt 0:01:47]} Kxh7 {The position is equal.} 34. Qh4+ Kg8 {[%emt 0:01:44]} 35. Qd8+ {[%emt 0:00:29]} Kh7 {[%emt 0:00:05]} 36. Qh4+ {[%emt 0:00:41]} Kg8 {[%emt 0:00:06]} 37. Qd8+ {[%emt 0:00:02]} Kh7 {[%emt 0:00:03] Weighted Error Value: White=0.12 (very precise) /Black=0.11 (very precise)} 1/2-1/2

[Event "Mitropa Cup Women 2022"]
[Site "Corte"]
[Date "2022.05.06"]
[Round "7.2"]
[White "Nadzamova, Viktoria"]
[Black "Bashylina, Luisa"]
[Result "0-1"]
[ECO "B90"]
[WhiteElo "2135"]
[BlackElo "1981"]
[Annotator "TA"]
[PlyCount "60"]
[EventDate "2022.04.30"]
[EventType "team-tourn"]
[EventCountry "FRA"]
[SourceTitle "playchess.com"]
[Source "ChessBase"]
[SourceQuality "1"]
[WhiteTeam "Slovakia"]
[BlackTeam "Germany"]
[WhiteTeamCountry "SVK"]
[BlackTeamCountry "GER"]
[TimeControl "40/5400+30:1800+30"]

{[%evp 18,60,18,8,14,-11,12,11,10,12,12,0,0,-10,-4,-23,-25,-35,-21,-50,28,-55,-58,-83,-72,-361,-244,-269,-235,-490,-489,-477,-477,-835,-828,-824,-795,-29989,-29990,-29990,-29991,-29991,-5800,-29998,-29999]} 1. e4 {[%emt 0:00:05]} c5 {[%emt 0:00:02]} 2. Nf3 {[%emt 0:00:07]} d6 {[%emt 0:00:03]} 3. d4 {[%emt 0:00:12]} cxd4 {[%emt 0:00:03]} 4. Nxd4 {[%emt 0:00:07]} Nf6 {[%emt 0:00:05]} 5. Nc3 {[%emt 0:00:15]} a6 {[%emt 0:00:02]} 6. Be3 {[%emt 0:00:33]} e5 {[%emt 0:00:08]} 7. Nb3 {[%emt 0:00:07]} Be7 {[%emt 0:00:19]} 8. f3 {[%emt 0:00:26]} Be6 {[%emt 0:00:03]} 9. Qd2 {[%emt 0:00:18]} O-O {[%emt 0:01:02]} 10. O-O-O {[%emt 0:00:38]} Nbd7 {[%emt 0:00:13] B90: Sicilian Najdorf: Unusual White 6th moves, 6 Be3 Ng4 and 6 Be3 e5.} 11. Nd5 {[%emt 0:01:59]} Bxd5 {[%emt 0:02:51]} 12. exd5 {[%emt 0:00:04]} a5 {[%emt 0:02:47] The position is equal.} 13. Kb1 {[%emt 0:14:49]} a4 {[%emt 0:02:56]} 14. Nc1 {[%emt 0:00:10] [#]} Nb6 $146 {[%emt 0:05:29]} ({Predecessor:} 14... a3 15. b3 e4 16. f4 Ng4 17. Bd4 Bf6 18. h3 e3 19. Bxe3 Nxe3 20. Qxe3 Re8 {0-1 (37) Salem,M (2200)-Udeshi,A (2368) Fujairah 2012}) 15. Bxb6 {[%emt 0:21:46]} Qxb6 {[%emt 0:00:09]} 16. g4 {[%emt 0:01:58]} Ra5 {[%emt 0:11:11]} 17. c4 {[%emt 0:01:50]} Rc8 $36 {[%emt 0:07:32][%mdl 2048] Black is pushing.} 18. h4 {[%emt 0:03:32]} Qc7 {[%emt 0:09:02]} ({Black should play} 18... Rac5 $15) 19. Bd3 {[%emt 0:02:22]} ({Better is} 19. Nd3 $11) 19... e4 $1 $15 {[%emt 0:03:53]} 20. Be2 {[%emt 0:09:14]} Rc5 {[%emt 0:16:35][%cal Ob7b5,Ba5c5,Bc5c4,Bc4c2,Bc2b2,Bb2a2][%mdl 32] aiming for ...b5!} 21. f4 $2 {[%emt 0:08:34][%mdl 8192] [#] Now White is beyond hope.} (21. g5 $17 {was necessary.} exf3 22. Bxf3) 21... Nxd5 $1 {[%emt 0:01:39][%cal Ob7b5][%mdl 512] White must now prevent ...b5!} 22. g5 {[%emt 0:06:06]} ({Not} 22. cxd5 $2 Rc2 23. g5 Rxd2 24. Rxd2 e3 $19) 22... Nb6 {[%emt 0:02:56]} 23. f5 $2 {[%emt 0:09:08]} (23. a3 {was worth a try.}) 23... Nxc4 $19 {[%emt 0:06:18]} 24. Bxc4 {[%emt 0:02:38]} Rxc4 {[%emt 0:00:04]} 25. Ne2 {[%emt 0:00:36]} (25. f6 $142 gxf6 26. Qe3) 25... Rc2 {[%emt 0:00:34]} 26. Qe3 {[%emt 0:00:20]} a3 {[%emt 0:06:51]} 27. Qxe4 {[%emt 0:04:42]} Rxb2+ {[%emt 0:02:26]} 28. Ka1 {[%emt 0:00:01]} d5 {[%emt 0:05:40]} 29. Qd3 {[%emt 0:02:52] [#]} Qb6 {[%emt 0:00:33]} (29... Rxe2 $142 $1 30. Qxe2 Qc3+ 31. Kb1 {[#]} Rc4 $1 32. Rd4 Qxd4 33. Qc2 Bd6 34. Rf1 Be5 35. Kc1 Qb2+ 36. Kd2 Rxc2+ 37. Ke3 Rc3#) 30. Rc1 {[%emt 0:01:23] [#]} Rxa2+ $1 {[%emt 0:00:10][%mdl 512] Weighted Error Value: White=1.28/Black=0.47} 0-1